[Event "BL 2024-25"]
[Site "Austria"]
[Date "2024.10.10"]
[Round "2.20"]
[White "Solodovnichenko, Yuri"]
[Black "Costa, Leonardo"]
[Result "0-1"]
[Annotator "TA"]
[ECO "C48"]
[WhiteElo "2497"]
[BlackElo "2472"]
[PlyCount "120"]
[EventDate "2024.08.28"]
[EventType "team-tourn"]
[EventCountry "AUT"]
[SourceTitle "playchess.com"]
[Source "ChessBase"]
[SourceQuality "1"]
[WhiteTeam "Wien-St Veit"]
[BlackTeam "Maria Saal"]
[TimeControl "40/5400+30:1800+30"]

{[%evp 44,120,0,0,0,0,0,0,0,0,0,-7,-4,-4,-4,-4,-6,-20,-18,-16,-16,-25,-22,-17,-18,-37,-39,-37,-29,-62,-71,-68,-56,-122,-77,-102,-104,-110,-100,-325,-340,-580,-578,-564,-563,-170,-170,-1265,-1258,-2339,-2154,-4718,-4618,-9877,-9314,-29962,-29963,-29965,-29965,-5608,-5089,-29973,-29974,-29974,-29975,-29969,-29963,-29980,-29981,-29983,-29984,-29990,-29991,-29992,-29993,-29993,-29994,-29998,-29999]} 1. e4 {[%emt 0:00:07]} e5 {[%emt 0:00:04]} 2. Nf3 {[%emt 0:00:03]} Nc6 {[%emt 0:00:04]} 3. Nc3 {[%emt 0:00:30]} Nf6 {[%emt 0:00:05]} 4. Bb5 {[%emt 0:00:05]} Bc5 {[%emt 0:00:07]} 5. O-O {[%emt 0:00:56]} O-O {[%emt 0:00:03]} 6. Bxc6 {[%emt 0:00:28]} dxc6 {[%emt 0:00:03]} 7. d3 {[%emt 0:00:10] C48: Four Knights: 4 Bb5, replies other than 4...Bb4.} Nd7 {[%emt 0:00:11]} 8. Be3 {[%emt 0:02:03]} Bd6 {[%emt 0:08:22]} 9. Nd2 {[%emt 0:00:27]} Nc5 {[%emt 0:00:14]} 10. f4 $146 {[%emt 0:02:42]} ({Predecessor:} 10. Nc4 Ne6 11. Ne2 f5 12. exf5 Rxf5 13. Ng3 Rf7 14. Qd2 b5 15. Nxd6 cxd6 16. f4 exf4 17. Bxf4 {½-½ Gharamian,T (2601)-Sasikiran,K (2636) WchT Final 13th rapid 2022 (1.4)}) 10... exf4 {[%emt 0:02:37]} 11. Bxf4 {[%emt 0:00:13]} Bxf4 {[%emt 0:10:33]} 12. Rxf4 {[%emt 0:00:34]} Ne6 {[%emt 0:00:12]} 13. Rf2 {[%emt 0:00:29]} Nd4 {[%emt 0:00:25]} 14. Nb3 {[%emt 0:05:17]} a5 {[%emt 0:03:22]} 15. Qd2 {[%emt 0:05:48]} a4 {[%emt 0:03:55]} 16. Nxd4 {[%emt 0:00:06]} Qxd4 {[%emt 0:00:03]} 17. Raf1 {[%emt 0:00:08]} Be6 {[%emt 0:02:08]} 18. Kh1 {[%emt 0:02:27]} Rfd8 {[%emt 0:19:46]} 19. b3 {[%emt 0:08:01]} b5 {[%emt 0:01:40]} 20. Qe1 {[%emt 0:01:10]} a3 {[%emt 0:01:58]} 21. Ne2 {[%emt 0:03:01]} Qe5 {[%emt 0:17:24]} 22. Nf4 {[%emt 0:06:41]} c5 {[%emt 0:00:13]} 23. h3 {[%emt 0:03:35]} h6 {[%emt 0:04:16]} 24. Qe2 {[%emt 0:30:27]} Rd7 {[%emt 0:04:52]} 25. Nxe6 {[%emt 0:05:32]} fxe6 {[%emt 0:00:04]} 26. Qg4 {[%emt 0:00:04]} Rdd8 {[%emt 0:01:53]} 27. Qf4 {[%emt 0:04:56]} Qxf4 {[%emt 0:00:54]} 28. Rxf4 {[%emt 0:00:04]} c4 {[%emt 0:00:10]} 29. dxc4 {[%emt 0:02:29]} bxc4 {[%emt 0:00:04]} 30. bxc4 {[%emt 0:03:20]} Rd2 {[%emt 0:07:34]} 31. R1f2 {[%emt 0:02:10]} Rxf2 {[%emt 0:00:45]} 32. Rxf2 {[%emt 0:00:04]} Ra4 {[%emt 0:00:02]} 33. Rf3 {[%emt 0:04:07]} Rxc4 {[%emt 0:00:04]} 34. Rxa3 {[%emt 0:00:04]} Rxc2 {[%emt 0:00:33]} 35. Kh2 {[%emt 0:00:05]} Kf7 {[%emt 0:00:08]} 36. Kg3 {[%emt 0:09:10]} Kf6 {[%emt 0:00:35]} 37. Kf3 {[%emt 0:00:53]} Ke5 {[%emt 0:01:19]} 38. g3 {[%emt 0:00:05]} ({White should play} 38. Ra5+ $15 c5 39. Ra4) 38... c5 {[%emt 0:02:47]} 39. h4 {[%emt 0:00:48]} Kd4 {[%emt 0:06:54]} 40. Ra7 {[%emt 0:00:31] [#]} Rc3+ $1 {[%emt 0:03:27]} 41. Kf4 $2 {[%emt 0:01:57]} (41. Kf2 $17 {keeps fighting.}) 41... e5+ $19 {[%emt 0:07:38]} 42. Kf5 $2 {[%emt 0:00:14]} (42. Kg4 g6 (42... Kxe4 $2 43. Rxg7 Rc4 44. Re7 $19) 43. a4) 42... Rf3+ $19 {[%emt 0:03:33]} (42... Rxg3 43. Rd7+ Ke3 44. Kxe5 $17) 43. Kg4 {[%emt 0:00:11]} Rf6 {[%emt 0:05:53]} (43... Kxe4 44. Ra4+ Ke3 (44... c4 45. Rxc4+ Ke3 46. Rc3+ Ke4 47. Rxf3 $11) 45. Ra3+ Ke4 46. Ra4+ (46. Rxf3 h5+ 47. Kxh5 Kxf3 $19) 46... Ke3 (46... c4 47. Rxc4+ Ke3 48. Rc3+ Ke4 49. Rxf3 $11) 47. Ra3+ Ke4 48. Ra4+ $11 (48. Rxf3 $2 h5+ 49. Kxh5 Kxf3 $19)) 44. Rxg7 {[%emt 0:00:15]} c4 {[%emt 0:00:04]} (44... Kxe4 45. Rc7 $17) 45. Rc7 $2 {[%emt 0:01:27]} (45. Rd7+ Kxe4 46. Rc7) 45... c3 $19 {[%emt 0:00:06]} (45... Kxe4 46. Rxc4+ Kd3 47. Rb4 $11) 46. Kh5 {[%emt 0:01:03]} Kd3 {[%emt 0:02:05]} (46... Kxe4 47. Rxc3 Kd4 48. Rc8 $11) 47. g4 {[%emt 0:18:33]} c2 {[%emt 0:00:03]} (47... Kxe4 48. Rxc3 Ra6 49. Rc8 $11) 48. Rd7+ {[%emt 0:00:40]} Kxe4 {[%emt 0:00:04]} 49. Rc7 {[%emt 0:00:02]} Kd3 {[%emt 0:00:04]} 50. Rd7+ {[%emt 0:00:03]} Kc3 {[%emt 0:00:03]} 51. Rc7+ {[%emt 0:00:12]} Kb2 {[%emt 0:00:03]} 52. Rb7+ {[%emt 0:00:09]} Kxa2 {[%emt 0:00:03]} 53. Rc7 {[%emt 0:00:04]} Kb2 {[%emt 0:04:33]} 54. Rb7+ {[%emt 0:00:03]} Kc1 {[%emt 0:02:02]} 55. g5 {[%emt 0:00:43]} hxg5 {[%emt 0:00:04]} 56. hxg5 {[%emt 0:00:04]} Rc6 {[%emt 0:01:08]} 57. g6 {[%emt 0:00:27]} Kd1 {[%emt 0:00:06]} 58. g7 {[%emt 0:01:20]} c1=Q {[%emt 0:00:07]} (58... c1=B 59. g8=Q (59. g8=B Rh6+ 60. Kg4 Rg6+ 61. Kf5 Rxg8 $15) 59... Rh6+ 60. Kg4 Rd6 61. Qb3+ Ke2 62. Qc2+ Bd2 63. Qc4+ Kf2 64. Rf7+ Bf4 65. Rxf4+ exf4 66. Qxf4+ Ke2 67. Qxd6) (58... Rh6+ 59. Kxh6 c1=Q+ (59... c1=B+ 60. Kh5 Ke2 61. g8=Q Kf2 62. Qc4 Kf3 63. Qxc1 Ke4 64. Rd7 Kf3 65. Rd3+ Ke4 66. Qc4+ Kf5 67. Rf3#) 60. Kh5 $11) 59. Rd7+ {[%emt 0:00:04]} Ke2 {[%emt 0:00:04]} 60. g8=Q {[%emt 0:00:04]} Rh6+ {[%emt 0:00:04]} 0-1

[Event "BL 2024-25"]
[Site "Austria"]
[Date "2024.10.10"]
[Round "2.21"]
[White "Naumann, Alexander"]
[Black "Koellner, Ruben Gideon"]
[Result "1/2-1/2"]
[Annotator "TA"]
[ECO "A13"]
[WhiteElo "2487"]
[BlackElo "2480"]
[PlyCount "61"]
[EventDate "2024.08.28"]
[EventType "team-tourn"]
[EventCountry "AUT"]
[SourceTitle "playchess.com"]
[Source "ChessBase"]
[SourceQuality "1"]
[WhiteTeam "Maria Saal"]
[BlackTeam "Wien-St Veit"]
[TimeControl "40/5400+30:1800+30"]

{[%evp 9,61,15,10,17,18,12,4,7,9,8,8,12,6,10,8,6,8,18,14,10,12,22,21,19,28,3,61,21,29,35,30,33,35,24,24,0,0,0,0,0,0,0,0,0,0,0,0,0,0,0,0,0,0,0]} 1. c4 e6 2. g3 d5 3. Bg2 Nf6 4. Nf3 dxc4 5. Qa4+ Bd7 6. Qxc4 c5 7. Ne5 Qc8 8. Qd3 Nc6 9. Nxd7 Nxd7 10. b3 Be7 11. Bb2 O-O 12. Nc3 Rd8 13. Rd1 Nf6 14. Qb1 Qd7 15. O-O Rac8 16. d3 b6 17. Rd2 Nd5 (17... g6 $11) 18. e3 Nxc3 19. Bxc3 {This pair of bishops is nice.} Qe8 20. Rfd1 Bf8 21. Qa1 Rd6 22. d4 cxd4 {The position is equal.} 23. Bxd4 Nxd4 24. Rxd4 Rcd8 25. Rxd6 Rxd6 26. Rxd6 Bxd6 $11 {KQB-KQB} 27. Qd4 Qe7 28. Bf3 g6 29. Kg2 Qc7 30. Qd3 Kg7 31. h4 {Weighted Error Value: White=0.05 (flawless) /Black=0.05 (flawless) .  Mistake:       	---       	Black=1      Inaccurate:     	White=1     	---        OK:         	White=9     	Black=13     Best:        	---       	Black=1} 1/2-1/2

[Event "BL 2024-25"]
[Site "Austria"]
[Date "2024.10.10"]
[Round "2.23"]
[White "Bauer, Sebastian"]
[Black "Kuegel, Tobias"]
[Result "1/2-1/2"]
[Annotator "TA"]
[ECO "B27"]
[WhiteElo "2334"]
[BlackElo "2428"]
[PlyCount "75"]
[EventDate "2024.08.28"]
[EventType "team-tourn"]
[EventCountry "AUT"]
[SourceTitle "playchess.com"]
[Source "ChessBase"]
[SourceQuality "1"]
[WhiteTeam "Maria Saal"]
[BlackTeam "Wien-St Veit"]
[TimeControl "40/5400+30:1800+30"]

{[%evp 14,75,6,7,4,17,13,14,23,22,20,14,22,23,14,10,30,0,-6,-16,0,-18,0,0,0,0,0,0,0,0,0,0,0,0,0,0,0,0,0,0,0,0,0,0,0,0,0,0,0,0,0,0,0,0,0,0,0,0,0,0,0,0,0,0]} 1. e4 {[%emt 0:00:03]} c5 {[%emt 0:00:02]} 2. Nf3 {[%emt 0:00:10]} g6 {[%emt 0:00:07]} 3. d4 {[%emt 0:08:10]} cxd4 {[%emt 0:01:14]} 4. Qxd4 {[%emt 0:00:08]} Nf6 {[%emt 0:01:20]} 5. Nc3 {[%emt 0:00:40]} Nc6 {[%emt 0:01:28]} 6. Qa4 {[%emt 0:01:12]} d6 {[%emt 0:02:08]} 7. e5 {[%emt 0:00:41]} dxe5 {[%emt 0:00:36]} 8. Nxe5 {[%emt 0:00:07][%cal Of1c4]} Bg7 {[%emt 0:00:08]} 9. Bb5 {[%emt 0:01:31][%cal Oc1f4]} O-O {[%emt 0:02:14]} 10. Nxc6 {[%emt 0:00:18]} bxc6 {[%emt 0:00:07]} 11. Bxc6 {[%emt 0:00:05]} Rb8 {[%emt 0:00:23]} 12. O-O {[%emt 0:00:14]} Qc7 {[%emt 0:02:18]} 13. Re1 {[%emt 0:21:06] Bf4 would now be deadly.} Rb6 {[%emt 0:07:48]} 14. Bf3 {[%emt 0:03:40] Black should prevent Bf4.} Bb7 {[%emt 0:01:22]} 15. Bf4 {[%emt 0:17:17]} Qc8 {[%emt 0:02:32] The position is equal.} 16. Bxb7 {[%emt 0:02:17]} Qxb7 {[%emt 0:00:23]} 17. Be5 {[%emt 0:00:27]} Rxb2 {[%emt 0:17:53]} 18. Rab1 {[%emt 0:03:44]} Rxb1 {[%emt 0:08:56]} 19. Rxb1 {[%emt 0:00:21]} Qd7 {[%emt 0:00:54]} 20. Qxd7 {[%emt 0:05:25]} Nxd7 {[%emt 0:00:21]} 21. Bxg7 {[%emt 0:00:07]} Kxg7 $11 {[%emt 0:00:11][%mdl 4096] Endgame. KRN-KRN} 22. Rb7 {[%emt 0:02:04][%csl LRa7,LRd7]} Rc8 {[%emt 0:03:41]} 23. Rxd7 {[%emt 0:00:28] [#] And now Rd3 would win.} Rxc3 {[%emt 0:00:36]} 24. Rxa7 {[%emt 0:00:53] KR-KR} e5 {[%emt 0:09:53]} 25. g4 {[%emt 0:03:28]} h6 {[%emt 0:02:48]} 26. Kg2 {[%emt 0:01:51]} e4 {[%emt 0:01:40]} 27. Re7 {[%emt 0:01:51][%cal Ba7e7,Be7e4,Be4b4,Bb4b6][%mdl 32]} Rxc2 {[%emt 0:00:15]} 28. Rxe4 {[%emt 0:00:10]} Rxa2 {[%emt 0:00:06]} 29. h3 {[%emt 0:00:13]} Ra5 {[%emt 0:00:19]} 30. Rb4 {[%emt 0:00:35]} h5 {[%emt 0:00:10]} 31. Kg3 {[%emt 0:00:43]} hxg4 {[%emt 0:00:14]} 32. hxg4 {[%emt 0:00:03]} g5 {[%emt 0:00:20]} 33. Rb6 {[%emt 0:00:55]} f5 {[%emt 0:00:42]} 34. gxf5 $1 {[%emt 0:00:09]} Rxf5 {[%emt 0:00:07]} 35. Kg4 {[%emt 0:00:12]} Rf6 {[%emt 0:00:19]} 36. Rxf6 {[%emt 0:00:10]} Kxf6 {[%emt 0:00:05]} 37. f4 {[%emt 0:00:17]} (37. f3 $5) 37... gxf4 {[%emt 0:00:09]} 38. Kxf4 {[%emt 0:00:40] An interesting draw.   Weighted Error Value: White=0.03 (flawless) /Black=0.01 (flawless) .  Inaccurate:     	White=1     	---        OK:         	White=11    	Black=15     Strong:       	White=1     	---} 1/2-1/2

[Event "BL 2024-25"]
[Site "Austria"]
[Date "2024.10.10"]
[Round "2.24"]
[White "Kulon, Klaudia"]
[Black "Hartl, Daniel"]
[Result "1/2-1/2"]
[Annotator "TA"]
[ECO "C58"]
[WhiteElo "2395"]
[BlackElo "2248"]
[PlyCount "97"]
[EventDate "2024.08.28"]
[EventType "team-tourn"]
[EventCountry "AUT"]
[SourceTitle "playchess.com"]
[Source "ChessBase"]
[SourceQuality "1"]
[WhiteTeam "Wien-St Veit"]
[BlackTeam "Maria Saal"]
[TimeControl "40/5400+30:1800+30"]

{[%evp 16,97,47,10,38,25,35,0,43,37,56,45,78,72,69,66,108,89,108,82,89,83,100,103,101,98,93,85,78,69,68,42,116,112,143,146,126,131,143,114,137,131,192,187,186,186,192,183,188,195,184,194,191,191,183,161,208,172,162,179,302,0,0,0,0,0,0,0,0,0,0,0,0,0,0,0,0,0,0,0,0,0,0,0]} 1. e4 {[%emt 0:00:02]} e5 {[%emt 0:00:06]} 2. Nf3 {[%emt 0:00:05]} Nc6 {[%emt 0:00:04]} 3. Bc4 {[%emt 0:00:06]} Nf6 {[%emt 0:00:08]} 4. Ng5 {[%emt 0:00:07]} d5 {[%emt 0:00:09]} 5. exd5 {[%emt 0:00:09]} Na5 {[%emt 0:00:11]} 6. Bb5+ {[%emt 0:00:12]} c6 {[%emt 0:00:08]} 7. dxc6 {[%emt 0:00:09]} bxc6 {[%emt 0:00:07]} 8. Qf3 {[%emt 0:00:14]} Rb8 {[%emt 0:03:59]} 9. Bd3 {[%emt 0:00:05]} Be7 {[%emt 0:07:02]} 10. Nc3 {[%emt 0:02:50]} O-O {[%emt 0:04:02]} 11. Bf5 {[%emt 0:00:30]} h6 {[%emt 0:05:26]} 12. Nge4 {[%emt 0:01:14]} Nxe4 {[%emt 0:07:43]} 13. Nxe4 {[%emt 0:01:46]} Nc4 {[%emt 0:14:10]} 14. Bxc8 {[%emt 0:17:19]} Qxc8 {[%emt 0:02:07]} 15. b3 {[%emt 0:00:39]} Na3 {[%emt 0:02:09]} 16. Bxa3 {[%emt 0:00:40]} Bxa3 {[%emt 0:00:07]} 17. O-O {[%emt 0:00:27]} f5 {[%emt 0:05:01]} 18. Nc3 {[%emt 0:02:56]} Qc7 {[%emt 0:06:29]} 19. Rad1 {[%emt 0:03:07]} Bd6 {[%emt 0:03:35]} 20. d3 {[%emt 0:02:38][%cal Bd2d3,Bd3d4,Bd4d5][%mdl 32]} Rb4 {[%emt 0:02:38]} 21. Ne2 {[%emt 0:02:29]} Rh4 {[%emt 0:09:41] And now ...e4 would win.} 22. g3 {[%emt 0:02:33]} Rg4 {[%emt 0:00:39]} 23. c4 {[%emt 0:05:13]} Rg6 {[%emt 0:01:24]} (23... Qd7 $14) 24. Kh1 {[%emt 0:06:02]} Qd7 {[%emt 0:05:08]} 25. d4 {[%emt 0:08:45] Wards off Bc5} e4 {[%emt 0:00:20]} 26. Qe3 {[%emt 0:00:26]} Rg4 {[%emt 0:04:28]} 27. f4 {[%emt 0:03:03]} exf3 {[%emt 0:01:13]} 28. Qxf3 {[%emt 0:00:10]} f4 {[%emt 0:01:38]} (28... Qe8 $16 {was worth a try.}) 29. gxf4 $18 {[%emt 0:04:32]} (29. Nxf4 Bxf4 30. gxf4 Rgxf4 31. Qxf4 Rxf4 32. Rxf4 Qe6 $16) 29... Bxf4 {[%emt 0:00:38] [#]} 30. d5 $1 {[%emt 0:02:30]} Rh4 {[%emt 0:04:34]} 31. Nxf4 {[%emt 0:08:20]} ({But not} 31. dxc6 $6 Qe6 32. Ng3 (32. Nxf4 Rhxf4 33. Qg2 Rxf1+ 34. Rxf1 Rxf1+ 35. Qxf1 Qxc6+ 36. Qg2 Qa6 $16) 32... Rf6 $16) 31... Rhxf4 {[%emt 0:00:09]} 32. Qxf4 {[%emt 0:00:31]} Rxf4 {[%emt 0:00:07]} 33. Rxf4 {[%emt 0:00:01][%mdl 4096] Endgame. KQ-KRR} Qd6 {[%emt 0:04:23]} 34. Rf3 {[%emt 0:02:21][%cal Oc4c5] Threatens to win with c5!} g5 {[%emt 0:02:02]} 35. Kg2 {[%emt 0:03:14]} Qe7 {[%emt 0:00:40]} (35... Qe5 {keeps fighting.} 36. Rd2 (36. dxc6 $2 Qe2+ 37. Kg3 Qxd1 $19) 36... Qe4) 36. Kf2 {[%emt 0:03:07]} (36. dxc6 $2 {too greedy.} Qe2+ 37. Kg3 Qxd1 $19) 36... cxd5 {[%emt 0:02:04]} 37. cxd5 {[%emt 0:00:05]} ({Resist} 37. Rxd5 Qc7 $16) 37... Qe5 {[%emt 0:01:06] [#]} (37... Qc5+ $142 38. Ke2 Qd6) 38. Kg1 $2 {[%emt 0:01:36]} ({Only move:} 38. d6 $1 $18 {[%cal Rd6d7] Intending d7 and mate.} Qxh2+ 39. Ke1 Qh1+ 40. Ke2 Qh2+ 41. Rf2 Qe5+ 42. Kf1 Qb5+ 43. Re2) 38... Qe2 {[%emt 0:00:51] The position is equal.} 39. Rfd3 {[%emt 0:02:09]} Qg4+ {[%emt 0:00:11]} 40. Kf1 {[%emt 0:01:33] aiming for h3.} Qf4+ {[%emt 0:00:12]} 41. Ke1 {[%emt 0:30:30] Strongly threatening R1d2.} (41. Kg1 $5) 41... Qe5+ {[%emt 0:30:13]} 42. Kd2 {[%emt 0:01:11]} Qb2+ {[%emt 0:01:50]} 43. Ke3 {[%emt 0:01:10]} Qe5+ {[%emt 0:00:20]} 44. Kf3 {[%emt 0:01:45] Hoping for Rd4.} Qf4+ {[%emt 0:00:24]} 45. Kg2 {[%emt 0:00:04]} Qg4+ {[%emt 0:00:07]} 46. Kf1 {[%emt 0:00:47] R1d2 is the strong threat.} Qf4+ {[%emt 0:00:06]} 47. Ke1 {[%emt 0:00:03] Black must now prevent h3.} (47. Kg1 $5) 47... Qe5+ {[%emt 0:00:07]} 48. Kd2 {[%emt 0:00:08] h3 would now be deadly.} Qb2+ {[%emt 0:00:07]} 49. Ke3 {[%emt 0:00:31] Blacks defense is rewarded with a draw.   Weighted Error Value: White=0.19 (very precise) /Black=0.15 (very precise) .  Missed win:     	White=1     	---        Mistake:       	---       	Black=4      Inaccurate:     	White=2     	Black=3      OK:         	White=14    	Black=18     Best:        	White=3     	---        Strong:       	White=1     	---} 1/2-1/2

[Event "BL 2024-25"]
[Site "Austria"]
[Date "2024.10.10"]
[Round "2.25"]
[White "Kozak, Adam"]
[Black "Nisipeanu, Liviu-Dieter"]
[Result "1/2-1/2"]
[Annotator "TA"]
[ECO "E15"]
[WhiteElo "2600"]
[BlackElo "2584"]
[PlyCount "48"]
[EventDate "2024.08.28"]
[EventType "team-tourn"]
[EventCountry "AUT"]
[SourceTitle "playchess.com"]
[Source "ChessBase"]
[SourceQuality "1"]
[WhiteTeam "Fuerstenfeld-Hartberg"]
[BlackTeam "Mayrhofen-Zell-Ziller"]
[TimeControl "40/5400+30:1800+30"]

{[%evp 15,48,0,12,3,4,0,0,0,15,16,21,23,21,0,125,118,125,122,122,132,104,126,118,0,432,0,0,0,0,0,0,0,0,0,0]} 1. d4 {[%emt 0:00:03]} Nf6 {[%emt 0:00:05]} 2. c4 {[%emt 0:00:07]} e6 {[%emt 0:00:03]} 3. Nf3 {[%emt 0:00:10]} b6 {[%emt 0:00:53]} 4. g3 {[%emt 0:00:15]} Bb4+ {[%emt 0:00:06]} 5. Bd2 {[%emt 0:01:26]} Bxd2+ {[%emt 0:00:08]} 6. Qxd2 {[%emt 0:01:08]} Ba6 {[%emt 0:00:08]} 7. Qc2 {[%emt 0:03:32]} c5 {[%emt 0:07:35]} 8. Bg2 {[%emt 0:04:11]} Nc6 {[%emt 0:02:33]} 9. dxc5 {[%emt 0:03:32]} bxc5 {[%emt 0:00:15]} 10. O-O {[%emt 0:00:06]} O-O {[%emt 0:00:18]} 11. Rd1 {[%emt 0:07:51]} Qe7 {[%emt 0:11:43]} 12. Nc3 {[%emt 0:07:37]} Rfd8 {[%emt 0:03:41]} 13. Qa4 {[%emt 0:10:29]} Bb7 {[%emt 0:00:08]} 14. Ne1 {[%emt 0:00:28]} d5 {[%emt 0:17:58]} 15. cxd5 $16 {[%emt 0:13:13] White is more active.} exd5 {[%emt 0:00:15]} 16. Nxd5 {[%emt 0:00:38]} Nxd5 {[%emt 0:00:06]} 17. Bxd5 {[%emt 0:02:04]} (17. Rxd5 Rxd5 18. Bxd5 Nd4 $11) 17... Nd4 {[%emt 0:00:04]} 18. Bxb7 {[%emt 0:00:28]} Qxb7 {[%emt 0:00:04]} 19. e3 {[%emt 0:05:39]} (19. Rd2 $16) 19... Ne2+ $11 {[%emt 0:00:08]} 20. Kf1 {[%emt 0:00:11]} Nd4 $1 {[%emt 0:00:02] The position is equal.} 21. Kg1 {[%emt 0:05:48] Prevents Qh1+} (21. exd4 $5 Qh1+ $8 22. Ke2 Qe4+ 23. Kf1 Qh1+ 24. Ke2 Qe4+ 25. Kf1 Qh1+ $11) 21... Ne2+ {[%emt 0:00:08]} 22. Kf1 {[%emt 0:00:02]} Nd4 {[%emt 0:00:05]} 23. Kg1 {[%emt 0:01:47] Dodges Qh1+} (23. exd4 $5 Qh1+ $8 24. Ke2 Qe4+ 25. Kf1 Qh1+ 26. Ke2 Qe4+ 27. Kf1 Qh1+ $11) 23... Ne2+ {[%emt 0:00:06]} 24. Kf1 {[%emt 0:00:06]} Nd4 $1 {[%emt 0:00:02] Weighted Error Value: White=0.18 (very precise) /Black=0.18 (very precise) .  Missed win:     	White=1     	---        Mistake:       	White=1     	Black=1      OK:         	White=4     	Black=6      Best:        	White=1     	Black=1      Strong:       	---       	Black=2} 1/2-1/2

[Event "BL 2024-25"]
[Site "Austria"]
[Date "2024.10.10"]
[Round "2.26"]
[White "Vogel, Roven"]
[Black "Berkes, Ferenc"]
[Result "1-0"]
[Annotator "TA"]
[ECO "D45"]
[WhiteElo "2559"]
[BlackElo "2604"]
[PlyCount "81"]
[EventDate "2024.08.28"]
[EventType "team-tourn"]
[EventCountry "AUT"]
[SourceTitle "playchess.com"]
[Source "ChessBase"]
[SourceQuality "1"]
[WhiteTeam "Mayrhofen-Zell-Ziller"]
[BlackTeam "Fuerstenfeld-Hartberg"]
[TimeControl "40/5400+30:1800+30"]

{[%evp 9,81,33,29,12,15,-1,31,29,31,25,54,62,60,55,65,54,50,52,77,61,72,68,66,38,31,30,62,56,63,58,52,47,40,0,0,0,0,0,0,0,0,0,17,0,0,0,39,29,92,37,131,139,276,284,277,195,198,189,243,238,233,217,402,404,423,393,476,444,510,511,545,607,566,553]} 1. d4 {[%emt 0:00:05]} d5 {[%emt 0:00:08]} 2. c4 {[%emt 0:00:09]} c6 {[%emt 0:00:07]} 3. Nf3 {[%emt 0:00:08]} Nf6 {[%emt 0:00:09]} 4. Nc3 {[%emt 0:00:56]} a6 {[%emt 0:00:10]} 5. e3 {[%emt 0:00:21]} e6 {[%emt 0:00:12]} 6. h3 {[%emt 0:01:12]} Nbd7 {[%emt 0:01:57]} 7. Qc2 {[%emt 0:01:59]} h6 {[%emt 0:16:33]} 8. b3 {[%emt 0:04:15] White is slightly better.} Bd6 {[%emt 0:01:54]} 9. Bb2 {[%emt 0:02:42]} e5 {[%emt 0:06:41]} 10. dxe5 {[%emt 0:09:33]} Nxe5 {[%emt 0:00:08]} 11. O-O-O {[%emt 0:00:26][%cal Rc3d5]} Qe7 $1 {[%emt 0:03:22]} 12. Nxe5 {[%emt 0:04:36]} Bxe5 {[%emt 0:00:12]} 13. cxd5 {[%emt 0:01:49]} cxd5 {[%emt 0:00:41]} 14. Nxd5 {[%emt 0:00:27]} Nxd5 {[%emt 0:01:03]} 15. Rxd5 {[%emt 0:00:08]} Bxb2+ {[%emt 0:00:06]} 16. Kxb2 {[%emt 0:02:01]} O-O {[%emt 0:01:48]} 17. Bd3 {[%emt 0:05:20]} Be6 {[%emt 0:01:31]} 18. Rd4 {[%emt 0:01:03] White is more active.} Rfd8 {[%emt 0:25:37]} 19. Rd1 {[%emt 0:04:23]} Rxd4 $1 {[%emt 0:01:35]} 20. exd4 {[%emt 0:01:03]} a5 {[%emt 0:17:04][%cal Ba6a5,Ba5a4,Ba4a3][%mdl 32]} 21. Bc4 {[%emt 0:16:45]} a4 $1 {[%emt 0:00:07]} 22. Bxe6 {[%emt 0:01:03]} a3+ {[%emt 0:00:46]} 23. Kb1 {[%emt 0:00:22]} Qxe6 $11 {[%emt 0:00:05][%mdl 4096] Endgame. KQR-KQR} 24. d5 {[%emt 0:01:05]} Qd6 {[%emt 0:00:09]} 25. Qe4 {[%emt 0:02:47]} Rd8 {[%emt 0:06:28]} 26. Rd3 {[%emt 0:06:09]} Qf6 {[%emt 0:01:47]} 27. Rd2 {[%emt 0:01:34] Dodges Qb2+} Qd6 {[%emt 0:00:58]} 28. Kc2 {[%emt 0:01:48]} Qa6 {[%emt 0:03:34]} (28... Kf8 $11 {keeps the balance.}) 29. Qd3 {[%emt 0:01:20]} (29. Rd3 $1 $16) 29... Qf6 {[%emt 0:00:18] [#]} (29... Qd6 $14) 30. d6 $1 $16 {[%emt 0:01:40][%cal Bd5d6,Bd6d7][%mdl 32]} Qa1 {[%emt 0:00:31] [#]} (30... Rc8+ $16 31. Kd1 Re8) 31. Qc3 $1 $18 {[%emt 0:01:09]} Qe1 {[%emt 0:00:20]} 32. f3 {[%emt 0:02:50] Repels Qe4+. Threatens to win with Qc7.} Qe8 {[%emt 0:04:09] And now ...Rc8 would win.} 33. Kd1 {[%emt 0:00:46]} Qb5 {[%emt 0:02:41] [#]} (33... g6 $142 34. Qc7 Rd7) 34. d7 $1 {[%emt 0:00:46][%mdl 512]} Qb6 {[%emt 0:00:52] Dodges Qc7} 35. b4 {[%emt 0:01:13]} Qg1+ $2 {[%emt 0:01:46]} (35... Kf8 {was called for.} 36. Qxa3 Qb5) 36. Kc2 {[%emt 0:00:08]} Qb6 {[%emt 0:00:10] Against Qc7} 37. Kb3 {[%emt 0:06:55]} (37. Qxa3 Rxd7 38. Rxd7 (38. Qa8+ Kh7 $11) 38... Qc6+ 39. Kd2 Qxd7+ 40. Ke2 Qd5 $11) 37... Qe6+ {[%emt 0:00:11]} 38. Kxa3 {[%emt 0:01:33] White is clearly winning.} Kh7 {[%emt 0:00:48]} 39. Qd3+ {[%emt 0:00:19]} g6 {[%emt 0:00:38]} 40. Kb2 {[%emt 0:00:29]} Qe5+ {[%emt 0:00:34]} 41. Qd4 {[%emt 0:30:43] Weighted Error Value: White=0.08 (flawless) /Black=0.30.  Mistake:       	White=1     	Black=5      Inaccurate:     	White=2     	Black=4      OK:         	White=16    	Black=13     Best:        	White=1     	---        Strong:       	White=2     	Black=3} 1-0